bitfinex/quotes_ETHUSD_20260213
["timestamp","ask_amount","ask_price","bid_price","bid_amount"]
[1770996142301,1.06379833,2020.1,2019.8,0.001]
[1770996142493,1.23750123,2020.2,2019.8,0.001]
[1770996142696,3.61992443,2020.2,2019.6,0.001]
[1770996142918,1.0637668,2020.1,2019.6,0.001]
[1770996143322,20.20098718,2020.0,2019.4,0.001]
[1770996143625,4.923971,2019.8,2019.1,0.001]
[1770996143827,4.923971,2019.8,2018.7,0.001]
[1770996143828,1.44634378,2019.3,2018.7,0.001]
[1770996144036,1.23823675,2019.0,2018.9,0.1515049]
[1770996144322,1.23823675,2019.0,2018.3,0.001]
[1770996144323,9.585009,2018.9,2018.3,0.001]
[1770996144495,17.668009,2018.7,2018.3,0.001]
[1770996144697,1.202,2018.8,2018.3,0.001]
[1770996144936,2.44122162,2019.1,2018.3,1.23963273]
[1770996145237,8.408479,2019.0,2018.3,0.001]
[1770996145393,2.44122162,2019.1,2018.3,1.2396474]
[1770996146025,1.204,2019.2,2018.3,1.2396474]
[1770996146194,1.23817542,2019.1,2018.3,0.001]
[1770996146923,9.07994783,2019.0,2018.3,0.001]
[1770996147147,1.204,2018.9,2018.3,0.001]
[1770996147348,1.23817542,2019.1,2018.3,0.001]
[1770996147549,1.204,2019.0,2018.3,0.001]
[1770996147918,1.23817542,2019.1,2018.3,0.001]
[1770996148118,1.204,2019.2,2018.3,0.001]
[1770996149819,1.204,2019.2,2018.5,0.001]
[1770996150448,1.203,2019.7,2018.5,0.001]
[1770996150622,5.921583,2019.6,2018.5,0.001]
[1770996150821,1.25101118,2019.5,2018.5,0.001]
[1770996151023,16.24068118,2019.4,2018.5,0.001]
[1770996151222,1.203,2019.7,2018.5,0.001]
[1770996151223,3.809,2019.2,2018.5,0.001]
[1770996151526,1.203,2019.1,2018.5,0.001]
[1770996151848,1.203,2019.2,2018.5,0.001]
[1770996152226,2.44114464,2019.2,2018.5,0.001]
[1770996152426,1.203,2019.2,2018.5,0.001]
[1770996152763,2.44111733,2019.2,2018.5,0.001]
[1770996153927,19.053445,2019.1,2018.5,0.001]
[1770996154154,12.133004,2019.1,2018.5,0.001]
[1770996154360,1.23823675,2019.0,2018.5,0.001]
[1770996154685,6.03368,2018.9,2018.5,0.001]
[1770996155033,1.206,2019.0,2018.5,0.001]
[1770996155533,1.206,2019.0,2018.3,0.001]
[1770996155534,1.25101118,2019.2,2018.3,0.001]
[1770996155832,1.206,2019.1,2018.3,0.001]
[1770996156457,1.23805279,2019.3,2018.3,0.001]
[1770996156458,1.2381141,2019.3,2018.3,0.001]
[1770996156656,4.952947,2019.4,2018.3,1.33478455]
[1770996156657,1.206,2019.4,2018.3,1.33478455]
[1770996157866,1.206,2019.4,2018.3,0.001]
[1770996158286,16.046358,2019.3,2018.3,0.001]
[1770996158484,1.2381141,2019.2,2018.3,0.001]
[1770996158786,14.446473,2019.1,2018.3,0.001]
[1770996159665,11.639246,2019.1,2018.3,0.001]
[1770996159980,0.892,2019.0,2018.3,0.001]
[1770996160160,24.887299,2018.9,2018.3,0.001]
[1770996160346,11.093086,2018.8,2018.3,0.001]
[1770996160539,1.23842076,2018.7,2018.3,0.001]
[1770996161373,19.839358,2018.6,2018.3,0.001]
[1770996161669,4.484,2018.6,2018.3,0.001]
[1770996161869,3.435949,2018.6,2018.3,0.001]
[1770996162178,1.3186564,2019.3,2018.3,0.001]
[1770996162348,0.002,2018.9,2018.3,0.001]
[1770996162554,25.950748,2018.6,2018.0,0.001]
[1770996162878,0.893,2018.5,2018.0,0.001]
[1770996163039,1.212,2018.4,2018.0,0.001]
[1770996163439,17.973569,2018.3,2017.4,0.001]
[1770996163871,14.98298863,2018.1,2017.4,0.001]
[1770996164170,7.419832,2017.9,2017.4,0.001]
[1770996164373,1.214,2017.8,2017.4,0.001]
[1770996164869,1.23878895,2018.1,2017.4,0.001]
[1770996165169,1.214,2017.9,2016.8,1.23958746]
[1770996166571,1.23897313,2017.8,2016.8,1.23958746]
[1770996166974,2.45295275,2017.9,2016.8,1.23958746]
[1770996167336,1.214,2017.9,2016.8,1.23958746]
[1770996167539,3.346145,2018.6,2017.0,1.33378455]
[1770996167754,1.214,2018.6,2017.2,1.33378455]
[1770996168170,1.214,2018.6,2017.4,1.33378455]
[1770996168372,0.002,2018.9,2017.6,1.33378455]
[1770996168569,1.24030854,2018.9,2017.7,1.23903454]
[1770996169142,7.280519,2018.8,2017.7,1.23903454]
[1770996169338,4.510519,2018.8,2017.6,1.23905943]
[1770996169647,7.83159,2018.6,2017.6,1.23905943]
[1770996169850,1.214,2018.5,2017.6,1.23905943]
[1770996170051,1.24030854,2018.9,2017.6,2.57284398]
[1770996170251,1.216,2018.9,2017.7,1.33378455]
[1770996170450,1.216,2018.9,2017.6,1.23905943]
[1770996170745,1.23842076,2018.7,2017.5,0.915]
[1770996170947,11.799114,2018.6,2017.5,0.915]
[1770996171154,1.06326755,2018.5,2017.5,0.865]
[1770996171350,1.214,2018.4,2017.5,0.865]
[1770996172347,1.214,2018.4,2017.3,2.13224688]
[1770996172562,1.06441173,2018.3,2017.3,2.13224688]
[1770996172769,2.661446,2018.1,2017.0,1.23943666]
[1770996172956,1.06441173,2018.0,2017.0,1.23943666]
[1770996173157,1.213,2017.9,2016.6,3.46643348]
[1770996173344,11.127326,2017.7,2016.7,1.23964893]
[1770996173544,2.38306813,2017.8,2016.7,1.23964893]
[1770996173545,1.06441173,2017.6,2016.7,1.23964893]
[1770996173770,4.0130364,2017.8,2016.7,1.23964893]
[1770996173945,1.06506263,2017.7,2016.7,1.23964893]
[1770996174146,1.06506263,2017.6,2016.7,1.23964893]
[1770996174346,1.06442869,2017.5,2016.7,1.23964893]
[1770996174545,1.3186564,2017.8,2016.6,2.13266686]
[1770996174848,1.23909595,2017.6,2017.5,0.001]
[1770996175075,2.30350264,2017.6,2016.6,2.13366686]
[1770996175280,1.23909595,2017.6,2016.6,2.13366686]
[1770996175664,1.23909595,2017.6,2016.6,2.13369225]
[1770996175983,1.06385889,2017.5,2016.6,0.001]
[1770996176149,13.814531,2017.3,2016.6,0.001]
[1770996176347,2.27685889,2017.4,2016.6,0.001]
[1770996176348,1.06332632,2017.2,2016.6,0.001]
[1770996176583,4.071053,2017.3,2016.6,0.001]
[1770996176755,1.23928022,2017.3,2016.6,0.001]
[1770996178044,2.45326838,2017.4,2016.6,0.001]
[1770996178246,2.13206604,2017.7,2016.6,0.001]
[1770996178450,12.491657,2017.6,2016.6,0.001]
[1770996178658,1.23915737,2017.5,2016.6,0.001]
[1770996179061,2.107,2017.7,2016.6,0.001]
[1770996179264,1.85784497,2018.2,2016.6,0.001]
[1770996179265,1.23877079,2018.2,2016.7,1.52064079]
[1770996179551,2.45277079,2018.2,2016.7,1.52064079]
[1770996179780,1.23865591,2018.4,2016.9,1.52064079]
[1770996179967,1.23865591,2018.4,2017.0,1.807]
[1770996180151,1.23865591,2018.4,2017.1,2.24778455]
[1770996180352,1.214,2018.6,2017.2,1.33378455]
[1770996180548,2.45248419,2018.6,2017.2,1.33378455]
[1770996180882,2.55895791,2018.9,2017.4,1.47884377]
[1770996181088,3.18001579,2018.8,2017.5,0.913]
[1770996181293,6.639726,2018.8,2017.5,0.913]
[1770996181580,1.24030151,2018.9,2017.5,1.29198753]
[1770996181782,0.002,2018.9,2017.5,1.29198753]
[1770996181958,1.24030151,2018.9,2017.5,1.29198753]
[1770996182553,1.06195654,2018.8,2017.3,2.15228022]
[1770996182817,1.23848211,2018.6,2017.3,2.15228022]
[1770996182989,1.23848211,2018.6,2017.4,1.29198753]
[1770996183654,1.23848211,2018.6,2017.3,2.15228022]
[1770996183655,12.619958,2018.5,2017.3,2.15228022]
[1770996184103,12.169169,2018.5,2017.3,2.15228022]
[1770996184260,11.918359,2018.5,2017.3,2.15228022]
[1770996184457,13.16412663,2018.5,2017.3,0.913]
[1770996184677,1.23848211,2018.6,2017.3,1.23923777]
[1770996184973,3.13751452,2018.5,2017.3,1.23923777]
[1770996185173,3.13751452,2018.5,2017.2,2.15333475]
[1770996185174,5.805855,2018.3,2017.2,2.15333475]
[1770996185383,1.214,2018.4,2017.2,2.15333475]
[1770996185593,1.06282811,2018.3,2017.2,2.15333592]
[1770996185899,5.576881,2018.3,2017.2,2.15333592]
[1770996186255,1.214,2018.4,2017.2,2.15333592]
[1770996186486,5.949802,2018.2,2017.2,2.15333592]
[1770996186825,1.23872757,2018.2,2017.2,2.15333592]
[1770996186961,2.107,2018.4,2017.2,2.15333592]
[1770996187157,1.2384527,2018.7,2017.3,1.29198753]
[1770996187395,1.06348119,2018.6,2017.4,0.001]
[1770996187569,0.002,2018.5,2017.4,0.915]
[1770996188089,0.002,2018.5,2017.4,0.001]
[1770996188090,1.06362035,2018.4,2017.4,0.001]
[1770996188398,1.214,2018.3,2017.4,0.001]
[1770996188554,1.06428964,2018.2,2017.4,0.001]
[1770996188760,1.23872757,2018.2,2017.4,0.001]
[1770996189460,1.214,2018.3,2017.4,0.001]
[1770996189684,1.06450787,2018.2,2017.4,0.001]
[1770996189888,1.214,2018.3,2017.4,0.001]
[1770996190089,0.002,2018.5,2017.4,0.001]
[1770996190387,0.002,2019.1,2017.8,1.29198753]
[1770996190588,0.893,2019.3,2018.0,1.29198753]
[1770996190789,1.215,2019.6,2018.2,1.29198753]
[1770996190997,1.215,2019.6,2018.3,2.18498753]
[1770996190998,0.002,2019.6,2018.3,2.18498753]
[1770996191205,1.2396292,2020.0,2018.5,1.29198753]
[1770996191404,1.23963536,2020.0,2018.5,1.29198753]
[1770996191572,1.06236142,2019.9,2018.5,1.29198753]
[1770996191771,1.23963536,2020.0,2018.5,1.29198753]
[1770996192105,1.06237992,2019.9,2018.5,1.29198753]
[1770996192270,1.23963536,2020.0,2018.5,1.29198753]
[1770996192778,1.23963536,2020.0,2018.6,1.23848211]
[1770996192993,0.002,2020.0,2018.8,1.29198753]
[1770996193193,0.002,2020.2,2019.0,1.29198753]
[1770996193399,3.8942126,2020.7,2019.0,1.29198753]
[1770996193400,1.32949504,2021.4,2019.6,1.29198753]
[1770996193609,0.002,2021.5,2020.0,16.118869]
[1770996193803,0.002,2021.5,2020.4,10.35845383]
[1770996193981,1.2363996,2022.0,2020.5,0.914]
[1770996194310,1.2363996,2022.0,2020.1,1.29198753]
[1770996194506,1.2363996,2022.0,2016.4,0.012]
[1770996194507,1.24576763,2021.3,2019.8,0.893]
[1770996194676,2.641532,2021.3,2019.8,0.914]
[1770996195011,2.104,2021.5,2020.1,1.47884377]
[1770996195321,1.23662417,2021.7,2020.2,17.985321]
[1770996195481,1.23662417,2021.7,2020.1,1.29198753]
[1770996196003,6.19209992,2021.9,2020.2,4.46467277]
[1770996196004,1.24576763,2021.9,2020.2,4.46467277]
[1770996196178,1.23647504,2021.9,2020.3,2.18498753]
[1770996196378,1.24576763,2021.7,2019.9,1.23768503]
[1770996196587,13.77936763,2021.5,2019.9,2.13068503]
[1770996196810,13.77936763,2021.5,2020.1,1.23756249]
[1770996196811,1.23682778,2021.3,2020.1,1.23756249]
[1770996197378,2.717303,2021.2,2020.0,2.15059121]
[1770996197585,2.37975,2021.2,2020.0,2.15059121]
[1770996197791,1.23682778,2021.3,2020.0,2.15059121]
[1770996197991,1.21,2021.4,2020.1,1.29198753]
[1770996198196,2.12973205,2021.5,2020.1,1.29198753]
[1770996198197,0.893,2021.5,2020.1,1.29198753]
[1770996198392,8.607474,2021.8,2020.3,1.29198753]
[1770996198599,1.23650648,2021.9,2020.1,0.18685624]
[1770996198941,6.15584301,2022.1,2020.6,1.23725626]
[1770996198942,2.44636828,2022.1,2020.6,1.23725626]
[1770996199082,6.38479763,2021.9,2020.6,2.15025626]
[1770996199283,2.7277,2021.8,2020.6,2.15025626]
[1770996199478,3.334118,2021.8,2020.6,2.15025626]
[1770996200109,2.806293,2021.8,2020.6,2.15025626]
[1770996200423,0.002,2021.1,2020.6,2.15025626]
[1770996200906,1.24576763,2021.9,2020.6,1.23725626]
[1770996200907,19.21980838,2021.9,2020.6,1.23725626]
[1770996201108,8.357228,2021.8,2020.5,1.23728057]
[1770996201412,8.08815,2021.6,2020.4,0.914]
[1770996201600,4.775892,2021.8,2020.4,0.914]
[1770996201917,1.24776763,2022.2,2020.4,2.20598753]
[1770996202135,1.23833495,2022.2,2020.7,1.29198753]
[1770996202414,1.23833495,2022.2,2020.8,1.806]
[1770996202710,1.23829413,2022.2,2020.8,1.806]
[1770996203209,10.950966,2021.9,2020.8,0.913]
[1770996203412,1.24576763,2022.0,2020.6,1.23725626]
[1770996203610,1.24576763,2022.0,2020.8,0.913]
[1770996203819,3.280225,2022.0,2020.8,0.913]
[1770996204185,1.209,2022.1,2020.8,0.913]
[1770996204591,16.438949,2022.0,2020.8,0.913]
[1770996204922,16.438949,2022.0,2020.6,1.23725626]
[1770996204923,2.369525,2022.0,2020.7,0.913]
[1770996205601,1.2363996,2022.0,2020.8,1.2371338]
[1770996207819,1.2363996,2022.0,2020.7,5.86153523]
[1770996207820,19.71294163,2021.9,2020.7,2.15018402]
[1770996208027,19.71294163,2021.9,2020.7,0.913]
[1770996208028,5.314422,2021.7,2020.7,0.913]
[1770996208319,1.24576763,2021.6,2020.5,2.12931741]
[1770996208618,1.24576763,2021.6,2020.5,0.892]
[1770996208822,2.91368,2021.5,2020.5,0.892]
[1770996209009,0.1024,2021.9,2020.5,2.12931531]
[1770996209210,1.24576763,2021.7,2020.5,2.12931531]
[1770996209399,6.74000663,2021.6,2020.5,2.12931531]
[1770996209598,6.74000663,2021.6,2019.7,6.24301019]
[1770996209599,12.818556,2021.4,2020.0,0.892]
[1770996209793,9.581326,2021.2,2020.1,2.15051946]
[1770996210114,2.44482778,2021.3,2020.1,2.15051946]
[1770996210690,4.94667739,2021.6,2020.1,2.15051946]
[1770996211008,4.94608764,2022.0,2020.4,1.1901119]
[1770996211421,6.22201012,2022.0,2020.2,0.18685624]
[1770996211598,4.94608764,2022.0,2020.2,1.37696814]
[1770996211927,18.270684,2022.0,2020.5,1.23731749]
[1770996212100,11.129698,2021.7,2020.6,0.913]
[1770996212425,1.27592248,2021.8,2020.6,0.913]
[1770996212721,6.15845,2021.7,2020.7,0.001]
[1770996212922,3.43545,2021.6,2020.7,0.001]
[1770996213124,4.558488,2021.4,2020.7,0.001]
[1770996213291,3.38145,2021.4,2020.7,0.001]
[1770996213496,3.312063,2021.6,2020.7,0.001]
[1770996213809,1.23676659,2021.4,2020.7,0.001]
[1770996214021,12.93930348,2021.3,2020.7,0.001]
[1770996214206,2.30068,2021.2,2020.7,0.001]
[1770996214602,1.23676659,2021.4,2020.7,0.001]
[1770996215044,16.879662,2021.3,2020.7,0.001]
[1770996215324,1.23676659,2021.4,2020.7,0.001]
[1770996215513,1.23664424,2021.6,2020.7,0.001]
[1770996215945,1.21,2021.7,2020.8,1.2371338]
[1770996216104,1.21,2021.7,2020.7,1.23815446]
[1770996216640,1.21,2021.7,2020.7,0.001]
[1770996216641,1.30108095,2021.6,2020.7,0.001]
[1770996216826,1.19868095,2021.4,2020.7,0.001]
[1770996217028,14.277332,2021.3,2020.7,0.001]
[1770996217231,5.142774,2021.1,2020.5,0.001]
[1770996217821,5.142774,2021.1,2019.6,0.912]
[1770996217822,5.47551259,2020.9,2019.6,0.912]
[1770996218044,1.23707259,2020.9,2019.6,0.912]
[1770996218335,5.00209,2020.8,2019.6,0.912]
[1770996218534,1.21,2021.2,2019.7,1.21680058]
[1770996218834,2.44693528,2021.2,2019.7,1.21680058]
[1770996219742,4.94717443,2021.4,2019.8,1.40365682]
[1770996219951,4.94717443,2021.4,2019.9,2.45448561]
[1770996220316,1.06145406,2021.3,2019.9,2.45448561]
[1770996220516,3.477334,2021.3,2019.9,2.45448561]
[1770996220817,3.452334,2021.3,2019.9,2.45448561]
[1770996221027,4.94717443,2021.4,2019.9,2.45448561]
[1770996221222,1.06147521,2021.3,2019.9,2.45448561]
[1770996221546,2.12874602,2021.5,2020.0,1.21680058]
[1770996221748,1.06254335,2021.4,2020.1,2.10880058]
[1770996221917,1.30950172,2021.7,2020.3,2.45424056]
[1770996222117,0.002,2021.7,2020.4,1.21680058]
[1770996222323,1.23859975,2021.7,2020.4,1.21680058]
[1770996223346,1.23859975,2021.7,2020.3,2.12943998]
[1770996223347,1.30750172,2021.5,2020.3,2.12943998]
[1770996223530,1.30750172,2021.5,2020.4,0.911]
[1770996223925,4.19132822,2021.7,2020.5,1.23731749]
[1770996223926,6.25410853,2021.6,2020.5,1.23731749]
[1770996224132,1.23670634,2021.5,2020.5,1.23731749]
[1770996224522,3.75513159,2021.7,2020.5,1.23731749]
[1770996224830,2.44762987,2021.7,2020.5,1.23731749]
[1770996225032,2.44758621,2021.7,2020.5,1.23731749]
[1770996225540,0.002,2021.9,2020.6,1.21780058]
[1770996225730,0.002,2021.5,2020.6,1.21780058]
[1770996225931,0.002,2022.2,2020.9,1.40365682]
[1770996226131,0.002,2022.2,2020.8,1.2371338]
[1770996226340,0.002,2022.2,2021.2,1.21680058]
[1770996227452,0.002,2022.2,2021.3,6.865516]
[1770996227654,0.002,2022.2,2021.4,0.912]
[1770996227851,0.002,2022.2,2021.3,0.18685624]
[1770996228155,0.002,2022.2,2021.4,3.04076659]
[1770996228460,0.002,2022.2,2021.5,1.804]
[1770996229057,0.002,2022.2,2021.6,0.912]
[1770996230152,6.1557323,2022.8,2021.6,0.912]
[1770996230153,1.2357075,2023.2,2021.7,2.45338365]
[1770996230364,1.30750172,2023.4,2021.8,1.40365682]
[1770996230560,2.61600987,2023.7,2022.2,1.40365682]
[1770996230561,1.23536591,2023.7,2022.2,1.40365682]
[1770996230735,2.43404686,2023.7,2022.3,1.803]
[1770996231056,2.43404686,2023.7,2021.9,9.89672674]
[1770996231057,2.43404686,2023.7,2021.9,9.7098705]
[1770996231247,2.43404686,2023.7,2022.0,1.98985624]
[1770996231248,6.225138,2023.6,2022.0,1.98985624]
[1770996231429,2.285566,2023.6,2022.0,1.98985624]
[1770996231624,2.285566,2023.6,2022.1,0.912]
[1770996231825,18.57799795,2023.3,2021.7,1.23658307]
[1770996232030,1.23566627,2023.2,2021.7,1.23658307]
[1770996232253,1.23566627,2023.2,2021.8,1.802]
[1770996233067,1.23566627,2023.2,2021.7,1.23658307]
[1770996233068,1.19868095,2023.1,2021.7,1.23658307]
[1770996233252,1.19868095,2023.1,2021.8,0.911]
[1770996233840,7.1411668,2023.3,2022.0,5.974783]
[1770996233841,2.12665295,2023.3,2022.0,5.974783]
[1770996234139,1.30750172,2023.7,2022.0,5.974783]
[1770996234140,1.23529993,2023.8,2022.3,1.21680058]
[1770996234347,1.23529993,2023.8,2022.4,0.911]
[1770996234550,2.43398088,2023.8,2022.5,1.802]
[1770996234857,1.23529993,2023.8,2022.5,1.802]
[1770996235039,1.206,2024.2,2022.6,1.21680058]
[1770996235239,1.19868095,2024.2,2022.3,10.92667108]
[1770996235461,1.19868095,2024.1,2022.5,1.40365682]
[1770996235630,1.19868095,2024.1,2022.3,9.7098705]
[1770996235831,1.19868095,2024.1,2022.6,0.911]
[1770996236158,1.23523889,2023.9,2022.7,0.911]
[1770996236358,2.43391984,2023.9,2022.4,1.23615506]
[1770996236559,17.129191,2023.8,2022.5,1.801]
[1770996236858,2.43391984,2023.9,2022.5,1.801]
[1770996237441,1.19868095,2023.7,2022.4,1.23615506]
[1770996237657,1.19868095,2023.7,2022.4,2.14615506]
[1770996237658,1.19868095,2023.6,2022.4,2.14615506]
[1770996238160,2.44040583,2023.7,2022.5,0.001]
[1770996238365,0.002,2023.6,2022.5,0.001]
[1770996239638,0.002,2023.6,2022.5,0.912]
[1770996240051,0.002,2023.6,2022.6,1.23603282]
[1770996240337,0.002,2023.6,2022.6,0.911]
[1770996240955,1.21610186,2023.2,2022.5,0.001]
[1770996241167,1.205,2023.5,2022.5,0.001]
[1770996241350,1.21610186,2023.3,2022.5,0.001]
[1770996241759,1.205,2023.5,2022.5,1.23709345]
[1770996242065,1.23548307,2023.5,2022.5,0.001]
[1770996242264,5.83493229,2023.6,2022.5,0.001]
[1770996242265,2.12842341,2023.6,2022.5,0.001]
[1770996242635,0.002,2023.6,2022.5,0.001]
[1770996243468,0.002,2023.6,2022.5,1.19255018]
[1770996243637,0.002,2023.6,2022.6,1.19155018]
[1770996243836,0.002,2023.6,2022.5,0.001]
[1770996243837,1.23742587,2023.6,2022.5,0.001]
[1770996244058,0.002,2023.6,2022.7,0.911]
[1770996244268,1.21610186,2023.4,2022.5,0.001]
[1770996245254,19.143171,2023.3,2022.5,0.001]
[1770996245447,17.96090986,2023.3,2022.5,0.001]
[1770996245768,5.327488,2023.2,2022.5,0.001]
[1770996245974,1.21610186,2023.1,2022.5,0.001]
[1770996246172,1.23584952,2022.9,2022.5,0.001]
[1770996247249,1.23581565,2023.0,2022.5,0.001]
[1770996248140,2.42210186,2023.2,2022.5,0.001]
[1770996248374,2.44167967,2023.2,2022.5,0.001]
[1770996248653,2.44168251,2023.2,2022.5,0.001]
[1770996248852,1.23567957,2023.2,2022.5,0.001]
[1770996249243,1.23548307,2023.5,2022.5,0.001]
[1770996249461,1.23548307,2023.5,2022.6,0.908]
[1770996249684,1.23548307,2023.5,2022.5,0.909]
[1770996250168,1.23548307,2023.5,2022.6,1.23603282]
[1770996250371,1.03548307,2023.5,2022.6,1.23603282]
[1770996250873,6.324296,2023.3,2022.5,0.001]
[1770996251044,1.21610186,2023.3,2022.5,0.001]
[1770996251249,1.03748307,2023.5,2022.5,1.23709096]
[1770996251846,2.25358493,2023.5,2022.5,1.23709096]
[1770996252379,2.25358493,2023.5,2022.5,0.001]
[1770996253074,0.002,2023.5,2022.5,0.001]
[1770996253371,0.002,2023.5,2022.6,0.891]
[1770996253581,0.002,2023.5,2022.7,0.907]
[1770996254378,0.002,2023.5,2022.8,1.23591061]
[1770996254750,0.002,2023.7,2022.8,1.23591061]
[1770996254751,0.002,2023.7,2022.9,1.19155018]
[1770996254950,0.002,2023.7,2022.8,1.23591061]
[1770996255155,0.002,2023.7,2022.9,1.798]
[1770996255969,0.002,2023.7,2022.8,1.23591061]
[1770996256295,0.002,2023.7,2023.0,1.23578843]
[1770996256887,0.002,2023.7,2022.6,4.94394812]
[1770996257091,1.21610186,2023.5,2022.5,1.2370456]
[1770996257290,1.06241857,2023.4,2022.5,1.2370456]
[1770996257481,1.06241857,2023.3,2022.5,1.2370456]
[1770996257677,1.06269479,2023.2,2022.5,0.001]
[1770996257878,1.21610186,2023.4,2022.5,1.23708289]
[1770996257879,1.32739144,2023.4,2022.5,1.23708289]
[1770996258083,1.06269516,2023.3,2022.5,1.23708289]
[1770996258283,2.29836815,2023.2,2022.5,0.001]
[1770996258481,1.06311062,2023.1,2022.5,0.001]
[1770996258664,1.06312903,2023.0,2022.5,0.001]
[1770996258989,3.77916629,2023.2,2022.5,0.001]
[1770996259195,2.27930329,2023.1,2022.5,0.001]
[1770996259380,7.5746573,2023.0,2022.3,0.001]
[1770996259571,2.27930329,2022.9,2022.3,0.001]
[1770996259770,2.27930329,2022.9,2021.4,0.001]
[1770996259771,1.21610186,2022.6,2021.4,0.001]
[1770996260071,3.7474933,2022.5,2021.4,1.23775138]
[1770996260271,1.06320143,2022.4,2021.4,1.23775138]
[1770996260575,1.23621618,2022.3,2021.4,0.001]
[1770996260776,1.06313801,2022.2,2021.4,0.001]
[1770996260955,1.23621618,2022.3,2021.4,0.001]
[1770996261160,1.0631223,2022.2,2021.4,0.001]
[1770996261379,2.45231804,2022.3,2021.4,0.001]
[1770996261584,2.5434933,2022.1,2021.4,0.001]
[1770996261762,1.06235964,2022.0,2021.4,0.001]
[1770996261962,1.21610186,2021.9,2020.9,1.23702935]
[1770996262162,1.21610186,2021.9,2020.7,2.14316103]
[1770996262163,1.21610186,2021.8,2020.7,2.14316103]
[1770996262390,1.23658307,2021.7,2020.7,2.14316103]
[1770996262591,1.23658307,2021.7,2021.6,0.001]
[1770996262887,1.23648892,2021.9,2020.7,2.14316103]
[1770996263065,2.45259078,2021.9,2020.7,1.23716103]
[1770996263991,1.23648892,2021.9,2020.7,1.23716103]
[1770996264194,2.44044603,2022.0,2020.7,1.23716103]
[1770996264876,12.733807,2021.9,2020.7,1.23716103]
[1770996265212,16.31314986,2021.7,2020.6,0.001]
[1770996265499,3.76783747,2022.0,2020.6,1.2382523]
[1770996265500,1.21610186,2021.6,2020.6,1.2382523]
[1770996265683,3.76783747,2022.0,2020.6,1.2382523]
[1770996265684,3.77993933,2022.0,2020.6,1.2382523]
[1770996265999,1.206,2021.9,2020.6,1.2382523]
[1770996266299,1.23619681,2022.4,2020.9,1.19155018]
[1770996266501,1.21610186,2022.5,2021.1,1.23695017]
[1770996266663,2.42210186,2022.5,2021.2,0.891]
[1770996267065,1.206,2022.5,2021.2,0.891]
[1770996267888,2.42210186,2022.5,2021.3,0.907]
[1770996268067,1.206,2022.5,2021.3,0.907]
[1770996268481,1.206,2022.5,2021.4,1.23676659]
[1770996268687,2.44209914,2022.5,2021.4,1.23676659]
[1770996268920,2.44209914,2022.5,2021.5,0.907]
[1770996269140,1.23609914,2022.5,2021.5,0.907]
[1770996269280,1.23591061,2022.8,2021.5,0.907]
[1770996269613,2.45201247,2022.8,2021.5,0.907]
[1770996269786,2.45201247,2022.8,2021.6,0.907]
[1770996269983,1.21610186,2022.6,2021.6,0.907]
[1770996270326,1.23591061,2022.8,2021.4,2.14376659]
[1770996270616,1.23591061,2022.8,2021.4,3.33531677]
[1770996270779,1.23591061,2022.8,2021.5,1.798]
[1770996270979,1.208,2022.9,2021.5,2.92466639]
[1770996271208,0.002,2022.9,2021.6,1.12666639]
[1770996271517,1.23785193,2022.9,2021.7,0.907]
[1770996271722,1.23785193,2022.9,2021.7,1.798]
[1770996271898,1.23785193,2022.9,2021.8,0.907]
[1770996272416,1.09168556,2022.8,2021.8,0.907]
[1770996272597,1.23597172,2022.7,2021.8,0.907]
[1770996272793,2.32765728,2022.7,2021.8,0.907]
[1770996273014,1.23597172,2022.7,2021.0,6.07373277]
[1770996273308,1.09168556,2022.5,2021.1,2.14395017]
[1770996273488,2.0967,2022.5,2021.1,2.14395017]
[1770996273692,0.891,2022.6,2021.1,2.14395017]
[1770996273998,2.15046586,2022.5,2021.1,1.23695017]
[1770996274193,1.09168556,2022.4,2021.2,0.907]
[1770996274716,1.23621618,2022.3,2021.3,1.23682778]
[1770996275109,1.09168556,2022.1,2020.7,4.94862232]
[1770996275301,2.29668556,2022.0,2020.8,0.907]
[1770996275616,2.29668556,2022.0,2020.7,4.94862232]
[1770996275617,9.886086,2021.7,2020.6,1.23821622]
[1770996275780,17.82587956,2021.5,2021.4,0.001]
[1770996275987,2.29668556,2021.5,2021.4,0.001]
[1770996276193,1.205,2021.5,2021.4,0.001]
[1770996276618,2.44170541,2021.5,2021.4,0.001]
[1770996277020,2.44170541,2021.5,2020.6,0.001]
[1770996278210,1.13772858,2021.3,2020.6,0.001]
[1770996278523,7.720062,2021.2,2020.6,0.001]
[1770996278706,1.23695017,2021.1,2020.6,0.001]
[1770996278905,1.23695017,2021.1,2019.9,4.95073069]
[1770996280302,1.2368671,2021.3,2020.0,1.13780513]
[1770996280626,1.23676659,2021.4,2020.1,1.23756249]
[1770996280826,1.208,2021.9,2020.2,1.13780513]
[1770996280827,1.23652191,2021.8,2020.2,1.13780513]
[1770996281028,1.208,2021.9,2020.4,1.13780513]
[1770996281228,2.44415506,2022.4,2020.7,4.82750513]
[1770996281443,3.941153,2022.3,2020.8,0.906]
[1770996281723,4.168192,2022.2,2020.8,0.906]
[1770996282109,1.13772858,2022.2,2020.8,0.906]
[1770996282306,4.90927508,2022.4,2020.8,0.906]
[1770996282510,3.434262,2022.2,2020.8,0.906]
[1770996282714,1.23646075,2021.9,2020.9,1.23707259]
[1770996283133,1.23646075,2021.9,2020.8,2.14313107]
[1770996283134,2.34472858,2021.8,2020.8,2.14313107]
[1770996283431,4.94584301,2022.2,2020.8,2.14313107]
[1770996283432,2.12725698,2022.3,2020.8,3.2809362]
[1770996284526,2.12725698,2022.3,2020.9,1.13780513]
[1770996284848,1.207,2022.5,2021.3,1.13780513]
[1770996285002,1.23798054,2022.7,2021.4,1.796]
[1770996285201,1.23798054,2022.7,2021.3,1.13780513]